Workbook

Sheet Main
D2: Dispatch Tool (All In One) Dispatch Section - Commercial Department
F5: Main Menu
B9: Data Entry | F9: Messeges | J9: Reporting

Sheet AN
J1: 26-03-2021 02:54:27 pm
B2: Delivery | H2: Role No | M2: CEMI
B3: AN Serial | H3: Loading note no | M3: CEMII
B4: Loading Type | H4: Truck Type | M4: SRC
B5: Truck Owner | M5: SRCU
B6: Shipping Agent | H6: Driver License | M6: CEMII
B7: Driver name | H7: Truck | M7: TYPEII
B8: Driver request | H8: Trailer
B9: Cutomer Number
F10: QTY | H10: Item | J10: Statues
B11: Coupons
K16: 202103250137
D19: Total

Sheet AN Report
E2: اذن وصول يدوى | K2: =NOW() -> 2021-03-26T14:54:27.070 | N2: Print Date
E3: Arrival Note
D4: =AN!D3 -> 0
D5: =D4 -> 0
B7: التاريخ | D7: =TEXT(AN!J1,"dd-mm-yyyy hh:mm:mm") -> 26-03-2021 02:54:27 pm | J7: رقم الدور | K7: =AN!J2 -> 0
B9: نوع التحميل | D9: =AN!D4 -> 0 | J9: نوع السياره | K9: =AN!J4 -> 0
B11: رقم السيارة | D11: =CONCATENATE(AN!J7," ",AN!K7) ->  | J11: ترخيص | K11: =AN!L7 -> 0
B13: رقم المقطورة | D13: =CONCATENATE(AN!J8," ",AN!K8) ->  | J13: ترخيص | K13: =AN!L8 -> 0
B15: رخصه السائق | D15: =AN!J6 -> 0 | J15: ترخيص | K15: =AN!L6 -> 0
B17: مالك السياره | D17: =AN!D5 -> 0 | J17: إسم الناقل
B19: إسم السائق | D19: =AN!D7 -> 0
B21: رغبة السائق | D21: =AN!D8 -> 0
B23: نوع التوصيل | D23: =IF(AN!D2="Delivery","وصال","ارض مصنع") -> ارض مصنع

Sheet AN_DB
B2: Delivery | C2: AN Serial | D2: Loading Type | E2: Truck Owner | F2: Shipping Agent | G2: Driver name | H2: Driver request | I2: Cutomer Number | J2: Name | K2: Role No | L2: Loading note no | M2: Truck Type | N2: Driver License | O2: Lic | P2: Truck | Q2: Lic | R2: Lic | S2: Trailer | T2: Lic | U2: Lic | V2: Coupons | W2: qty | X2: Coupons | Y2: qty | Z2: Coupons | AA2: qty | AB2: Coupons | AC2: qty | AD2: Coupons | AE2: qty | AF2: Coupons | AG2: qty | AH2: date | AI2: statues | AJ2: qty | AK2: item | AL2: Tare | AM2: date | AN2: gross | AO2: fright | AP2: date | AQ2: net | AR2: total | AS2: bags | AT2: m | AU2: l | AW2: AN | AX2: Row | AY2: LN | AZ2: Row | BB2: s1 | BC2: s2 | BD2: s3 | BE2: s4 | BF2: s5 | BG2: s6 | BH2: s7 | BI2: s8 | BJ2: s9 | BK2: s10 | BL2: s11 | BM2: s12
B3: Ex-Factory | C3: 202103250137 | D3: معبا محلى | E3: عبدالله هاشم | G3: زكى هاشم زكى | I3: 1100231 | J3: شيماء مسعد مصطفى | K3: 1093 | L3: 481951 | M3: Flat | N3: 27909171700493 | O3: المنوفية | P3: 9274 | Q3: م ى ع | R3: مصر | S3: 9284 | T3: م د ر | U3: مصر | V3: 2021004224-2 | W3: 10 | AH3: 26-03-2021 01:56:34 pm | AI3: Dispatched | AJ3: 10 | AK3: SRC | AL3: 21850 | AM3: 26-03-2021 02:18:56 pm | AN3: 31850 | AP3: 26-03-2021 02:45:01 pm | AQ3: 10000 | AR3: 10 | AS3: 200 | AW3: 202103250137 | AX3: =MATCH(AW3,C:C,0) -> 3
B4: Ex-Factory | C4: 202103250096 | D4: معبا محلى | E4: صلاح محمد محمد | G4: مصطفى العليمى مصيلحى | I4: 1100005 | J4: شركة المصطفى لتجارة مواد البناء | K4: 1065 | L4: 481889 | M4: Flat | N4: 25106281701212 | O4: المنوفية | P4: 3495 | Q4: م ب ق | R4: مصر | S4: 8239 | T4: م و ط | U4: مصر | V4: 2021004352-4 | W4: 60 | AH4: 26-03-2021 02:10:18 pm | AI4: Dispatched | AJ4: 60 | AK4: CEMI | AL4: 31550 | AM4: 26-03-2021 02:39:02 pm | AN4: 91650 | AP4: 26-03-2021 02:52:00 pm | AQ4: 60100 | AR4: 60.1 | AS4: 1200 | AT4: 1 | AU4: 2 | AW4: 481889 | AX4: =MATCH(AW4,L:L,0) -> 4
B5: Ex-Factory | C5: 202103260016 | D5: سائب محلى | E5: جنى طلعت امين | G5: حلمى محمد حافظ | I5: 1200523 | J5: يحى محمد يحى محمد | K5: 2010 | L5: 481953 | M5: Silo | N5: 28302121700991 | O5: المنوفية | P5: 4617 | Q5: ع و ط | R5: مصر | S5: 8743 | T5: م و ط | U5: مصر | V5: 2021004157-4 | W5: 60 | AH5: 26-03-2021 02:17:22 pm | AI5: Under Packing | AJ5: 60 | AK5: SRCU | AL5: 25600 | AM5: 26-03-2021 02:43:11 pm

Sheet Tare
B2: Loading note no
B3: Cutomer Number
B4: Driver name | I4: 26-03-2021 02:43:19 pm | AX4: Delivery
B5: Cement Type
B8: Driver License
B9: Truck
B10: Trailer
B12: Tare Weight

Sheet Tare Report
E2: التاريخ | G2: 26-03-2021 02:43:11 pm
E4: الوزن الفارغ | G4: 25600
E6: رقم الاذن | G6: 481953
E8: إسم السائق | G8: حلمى محمد حافظ
E10: رقم السيارة | G10: 4617ع و ط
E12: رقم المقطورة | G12: 8743م و ط
E14: إسم السائق | G14: =AN!D2 -> 0
E16: رغبة السائق | G16: =AN!D3 -> 0
E18: نوع التوصيل | G18: =IF(AN!#REF!="Delivery","وصال","ارض مصنع") -> 

Sheet LN Report
B2: =IF(OR(AN!H11="CEMI",AN!H11="CEMIU")," ",AN!H11) -> 0 | E2: اذن تحميل يدوى | I2: =AN!$J$3 -> 0
E3: Loading Note | I3: =I2 -> 0
C5: التاريخ | E5: 26-03-2021 01:56:34 pm | I5: رقم الدور | K5: =AN!J2 -> 0 | L5: رقم اذن | N5: =AN!D3 -> 0
C7: رقم العميل | E7: =AN!D9 -> 0 | I7: اسم العميل | K7: =AN!G9 -> 0
C9: نوع العميل | I9: الجهة
C11: نوع التوصيل | E11: =IF(AN!D2="Delivery","وصال","ارض مصنع") -> ارض مصنع | I11: اسم السائق | K11: =AN!D7 -> 0
C13: الكمية | E13: رقم الكوبون
C14: =AN!F11 -> 0 | E14: =AN!D11 -> 0
C15: =AN!F12 -> 0 | E15: =AN!D12 -> 0
C16: =AN!F13 -> 0 | E16: =AN!D13 -> 0
C17: =AN!F14 -> 0 | E17: =AN!D14 -> 0
C18: =AN!F15 -> 0 | E18: =AN!D15 -> 0
C19: =AN!F16 -> 0 | E19: =AN!D16 -> 0
C20: اجمالى | E20: =SUM(C14:C19) -> 0
K21: نوع الاسمنت | N21: عدد الشكائر
C22: رقم السيارة | E22: =CONCATENATE(AN!J7," ",AN!K7) ->  | K22: =AN!H11 -> 0 | N22: =E20*20 -> 0
C24: رقم المقطورة | E24: =CONCATENATE(AN!J8," ",AN!K8) ->  | N24: توقيع السائق
C26: رخصة السائق | E26: =AN!J6 -> 0
E30: اذن تحميل يدوى | I30: =I2 -> 0
E31: Loading Note | I31: =I2 -> 0
C33: التاريخ | E33: =E5 -> 26-03-2021 01:56:34 pm | I33: رقم الدور | K33: =K5 -> 0 | N33: رقم اذن الوصول | P33: =N5 -> 0
C35: رقم العميل | E35: =E9 -> 0 | I35: اسم العميل | K35: =K7 -> 0
C37: نوع العميل | I37: الجهة
C39: نوع التوصيل | E39: =E11 -> ارض مصنع | I39: اسم السائق | K39: =K11 -> 0
C41: رقم السيارة | E41: =E22 ->  | K41: نوع الاسمنت | N41: عدد الشكائر
L42: شيكارة | N42: طن
C43: رقم المقطورة | E43: =E24 ->  | K43: حمولة السيارة | O43: نقطة التحميل
K44: حمولة المقطورة | O44: المسئول
C45: رخصة السائق | E45: =E26 -> 0 | K45: اجمالى
K46: رقم الحارة
N47: توقيع السائق

Sheet FN
B2: Loading Note | H2: QTY | J2: Statues
B3: Freight Note
B4: Cutomer Number
B5: Driver name | I5: Date | J5: 26-03-2021 14:53:55
B6: Cement Type | G6: Packed
B7: Driver License
B8: Truck
B9: Trailer | K9: No of bags
B10: Tare Weight | E10: Gross Weight | H10: Net | K10: Machine
H11: Total | J11: Ton | K11: Lane
B13: Seal No

Sheet FN Report
G2: سند شحن يدوى
G3: Freight Note
G4: =FN!D3 -> 0
G5: =G4 -> 0
C7: التاريخ | D7: =FN!$J$5 -> 26-03-2021 14:53:55 | H7: رقم الاذن | I7: =FN!D2 -> 0
C8: رقم العميل | D8: =FN!D4 -> 0 | H8: اسم العميل | I8: =FN!G4 -> 0
C9: جهة الوصول | D9: المصنع | H9: المنطقة
C11: الوزن بالطن | D11: نوع الاسمنت | I11: التعبئة | L11: عدد الشكائر
C12: =IF(LEN(FN!L9)=0,FN!G2,FN!I2) -> 0 | D12: =IF(FN!D6="CEMI","اسمنت بورتلاندى مواصفات اوروبيه معبأ رتبه 42.5",IF(FN!D6="CEMIU","اسمنت بورتلاندى مواصفات اوروبيه سائب رتبه 42.5",IF(FN!D6="SRC","اسمنت بورتلاندى مقاوم للكبريتات معبأ رتبه (42.5 SR5)",IF(FN!D6="SRCU","اسمنت بورتلاندى مقاوم للكبريتات سائب رتبه (42.5 SR5)","اسمنت بورتلاندى حجر جيرى معبأ رتبه (N32.5)")))) -> اسمنت بورتلاندى حجر جيرى معبأ رتبه (N32.5) | I12: =IF(OR(FN!D6="CEMII",FN!D6="SRC",FN!D6="CEMI"),"معبأ محلى","سائب محلى") -> سائب محلى | L12: =FN!L9 -> 0
C13: عنوان الوصول
C15: اسم السائق | D15: =FN!D5 -> 0
C16: رقم السيارة | D16: =CONCATENATE(FN!D8," ",FN!E8) ->  | H16: ترخيص | I16: =FN!F8 -> 0
C17: رقم المقطورة | D17: =CONCATENATE(FN!D9," ",FN!E9) ->  | H17: ترخيص | I17: =FN!F9 -> 0
C18: رخصة السائق | D18: =FN!D7 -> 0 | H18: ترخيص | I18: =FN!F7 -> 0
C20: الوزن الفارغ | D20: =IF(I12="سائب محلى",FN!D10/100,"") -> 0
C21: الوزن القائم | D21: =IF(I12="سائب محلى",FN!G10/100,"") -> 0
C22: الصافى | D22: =IF(I12="سائب محلى",D21-D20,"") -> 0
C23: ارقم البرشام
C24: =FN!C13 -> 0 | D24: =FN!D13 -> 0 | G24: =FN!E13 -> 0 | H24: =FN!F13 -> 0 | J24: =FN!G13 -> 0 | N24: =FN!H13 -> 0
C25: =FN!C14 -> 0 | D25: =FN!D14 -> 0 | G25: =FN!E14 -> 0 | H25: =FN!F14 -> 0 | J25: =FN!G14 -> 0 | N25: =FN!H14 -> 0
C27: استلمت الكمية والوزن الموضحان بهذا السند وذلك لتسليمها اللى
C28: السادة/ | D28: =I8 -> 0
C29: نوع التوصيل | D29: =IF(D9="المصنع","ارض مصنع","وصال") -> ارض مصنع
I31: توقيع السائق

Sheet Target QTY
A1: Grand Target | C1: 8500 | F1: SN | K1: CEMIU | L1: SRCU | M1: TYPEII | N1: CEMI | O1: DIS | P1: SRC | R1: Contractor quota bulk | T1: 3000 | AD1: Hand by hand notes
F2: 1 | J2: Delivery Plan | K2: =SUM(K3:K4) -> 1980 | L2: 360 | M2: 0 | N2: 120 | O2: 60 | P2: 0 | Q2: =SUM(K2:P2) -> 2520 | R2: Code | S2: Dispatch | T2: Remain | U2: Total | AD2: تم تعديل ساعه Gross weight مع ساعه Arrival Note
A3: Breakup | D3: with del | F3: 2 | J3: Contractor | K3: =960+900+60+60 -> 1980 | L3: 360 | N3: 120 | O3: 60 | R3: CEMIU | T3: 420 | U3: =T3+S3 -> 420 | AD3: ظهور ميل السيستم بعد كسر الساعه بدقيقه لو حدث اى تاخير يبلغ أ عمرو
A4: Dispatch | B4: BAG-CEMI | C4: 6417.35 | F4: 3 | J4: DIS | R4: SRCU | T4: 120 | U4: =T4+S4 -> 120 | AD4: اي تفويض موجود على السيستم ثلاثى الاسم يتم تصوير بطاقه المفوض و ارسالها إلى لرفعها فى فولدر التفويضات.
B5: BAG-SRC | F5: 4 | K5: 1140 | L5: 180 | N5: 120 | O5: 60 | R5: Del | T5: 480 | U5: =T5+S5 -> 480 | AD5: البونات هتنزل 60 بعد كده والفكه فى حاله تقديم السواق للنقله كامله و ارسال البون ل أ عمرو لفكه
B6: (BAG)-CEMII | F6: 5 | K6: 60 | R6: U/P
B7: BLK-CEMIU | F7: 6 | K7: 60 | R7: Issued | U7: =T7+S7 -> 0 | AD7: دخول العربيات الساعه 6:05 صباحا
B8: BLK-SRCU | F8: 7 | U8: =T8+S8 -> 0 | AD8: عدم ابلاغ اى سائق بموعد دخوله و التزامه بسماع اسمه فى الميكروفون
B9: BLK-TYPEII | F9: 8 | R9: Total | S9: =SUM(S3:S8) -> 0 | T9: =SUM(T3:T8) -> 1020 | U9: =SUM(U3:U8) -> 1020 | AD9: الصفا - ياسر عبد الفتاح (1100239) يوجد كود اخر باسم ياسر محمد عبدالفتاح ( 1100598 )
F10: 9 | R10: Total | S10: =SUM(S9:T9) -> 1020 | AD10: فى اى ميل فك بونات حط السيلز و السيلز ادمن
A11: U/P | B11: BAG-CEMI | C11: 1075 | F11: 10 | R11: Remaining | S11: =T1-S10 -> 1980 | AD11: عند ارسال ميل فك بونات الى ا/ عمرو يتم تبليغه على الوتس
B12: BAG-SRC | F12: 11 | R12: Target | S12: 9000 | AD12: لا يتم عمل دور للسائق الذى يريد فك بونات
B13: (BAG)-CEMII | F13: 12 | AD13: اوليه بعد الساعه 1 صباحا عاده قديم
B14: BLK-CEMIU | F14: 13 | R14: Grand Dispatch From 25-11 till yesterday | S14: Daily | T14: Remain | AD14: دخول رشه الصبح عاده قديم لو موجود
B15: BLK-SRCU | F15: 14 | AD15: Hold drivers
B16: BLK-TYPEII | F16: 15 | T16: =S12-T32 -> 268.2
F17: 16 | R17: 8731.8
A18: WAITING | B18: BAG-CEMI | F18: 17 | AD18: Driver Name | AH18: Reason
B19: BAG-SRC | F19: 18 | AD19: احمد عبدالمعطى عبدالرحمن | AH19: ايقاف شهر من يوم 18-2
B20: (BAG)-CEMII | F20: 19 | AD20: عبدالحليم عادل على | AH20: محضر فقد رخص تالسياره مهله اسبوع من تاريخ 12/7الى 19/7
B21: BLK-CEMIU | C21: 0 | F21: 20 | AD21: حمدى السيد محمد | AH21: تقديم ايصال سحب لرخصه القياده
B22: BLK-SRCU | F22: 21 | AD22: محمد محمد عبدالعزيز | AH22: تقديم رخصه سليمه
B23: BLK-TYPEII | F23: 22 | AD23: عطيه سيد عطيه | AH23: محاضر فقد للسيارة والمقطورة مهله اسبوع
F24: 23 | AD24: السيد حمدى عيد | AH24: رخصه سائق منتهه من شهر 4 سماح شهر من 24-1-2021
A25: DEL | D25: =SUM(K29:P29) -> 900 | E25: =D25/60 -> 15 | F25: 24 | AD25: عاطف محمود 09-11-2020 | AH25: تصريحه منتهى مهله الى اول الاسبوع 8/12/2020
A26: Total | C26: =SUM(C4:C23)+H29 -> 7492.35 | D26: =C26+D25 -> 8392.35 | F26: 25 | AD26: محمد عبدالشافى 09-11-2020 | AH26: تصريحه منتهى
F27: 26 | AD27: تامر معوض 17-11-2020 | AH27: رخصة منتهية
A28: Net Rem | C28: =C1-C26 -> 1007.65 | D28: =C1-D26 -> 107.65 | F28: 27 | J28: Total Issued | K28: =SUM(K5:K27) -> 1260 | L28: 180 | M28: 0 | N28: 120 | O28: 60 | P28: 0 | AD28: محمد فرج خليل 19-11 | AH28: رخصة منتهية
C29: TRK | D29: =INT(D28/60)+1 -> 2 | H29: =SUM(H2:H28) -> 0 | J29: Remaining | K29: =K2-K28 -> 720 | L29: 180 | M29: 0 | N29: 0 | O29: 0 | P29: 0 | Q29: =SUM(K29:P29) -> 900 | AD29: سالم معوض 25-11 | AH29: كل الرخص منتهية ورخصة السائق مضروبة
K30: =K29/60 -> 12 | L30: 3 | M30: 0 | N30: =N29/60 -> 0 | O30: =O29/60 -> 0 | P30: 0 | AD30: سعيد محمد محمد | AH30: كل الرخص ورخصة السائق مضروبة
B31: ="Current Booking " & TEXT(TODAY(),"dd-mm-yyyy") & CHAR(10) &J33 & " " &K33 & CHAR(10) &J34&" "&K34&CHAR(10)&J35&" " &K35 & CHAR(10) &J36&" " &K36 & CHAR(10) &J37&" " &K37& CHAR(10) &J38&" " &K38& CHAR(10) & "-------------------------------" & CHAR(10) &J39&" " &K39 -> Current Booking 26-03-2021 (BAG)-CEM. 7492.35 (BAG)-SRC. 0 (BAG)-CEMII 0 (BLK)-CEM. 720 (BLK)-SRC. 180 (BLK)-TYPEII. 0 ------------------------------- TTL-CEM. 8392.35 | J31: Current Booking (SMS) | S31: =SUM(S16:S30) -> 0 | AD31: عوض حسين يوسف | AH31: رخصه سائق منتهيا من شهر 4(تم تجديد الرخصه)
J32: Type | K32: Current day Qty | R32: TTL DIS & ISSUED | T32: =S31+R17 -> 8731.8 | AD32: مصطفى امين على | AH32: رخصه سائق منتهيا من شهر 5
J33: (BAG)-CEM. | K33: =SUM(C4,C11,C18,N29,O29,H29) -> 7492.35 | AD33: رضا فهيم السيد | AH33: رخصه سائق منتهيا من 11/2019
J34: (BAG)-SRC. | K34: =SUM(C5,C12,C19,P29) -> 0 | AD34: سالم معوض سالم | AH34: رخصه درجه ثالثه ممنوع من الدخول
J35: (BAG)-CEMII | K35: =SUM(C6+C13+C20) -> 0 | AD35: محمد محمد عبدالعزيز | AH35: رخصه منتهيه من 2019 سماح شهر من 24-01
J36: (BLK)-CEM. | K36: =SUM(C7,C14,C21,K29) -> 720
B37: Daily Quota | C37: Packed | D37: Bulk | J37: (BLK)-SRC. | K37: =C8+C15+C22+L29 -> 180
B38: Dispatch | C38: 4440 | D38: 1864.1 | J38: (BLK)-TYPEII. | K38: =C9+C16+C23+M29 -> 0
B39: U/P | C39: 480 | D39: 595 | J39: TTL-CEM. | K39: =SUM(K33:P38) -> 8392.35
B40: Issued | C40: 60 | D40: 120
B41: Delivery Plan (Remain) | C41: =SUM(N29:O29) -> 0 | D41: =SUM(K29:L29) -> 900 | E41: =1080/60 -> 18
B42: TTL | C42: =SUM(C38:C41) -> 4980 | D42: =SUM(D38:D41) -> 3479.1
B43: Remaining | C43: =5000-C42 -> 20 | D43: =3500-D42 -> 20.9
B44: TRKS | C44: =C43/60 -> 0.3333333333 | D44: =D43/60 -> 0.3483333333
F46: Daily canyon | H46: 352.6 | J46: ="Canyon dispatch figures: "& CHAR(10) & CHAR(10) &"1- " &TEXT(TODAY()-1,"dddd")&" "&LEFT(TEXT(W2,"dd-mm-yyyy"),2)-1&" "&LEFT(TEXT(W2,"mmmm"),3)&" = "&H46&" "& "Tons" & CHAR(10) & CHAR(10) & "2- 01 "&LEFT(TEXT(W2,"mmmm"),3) &" To " &LEFT(TEXT(W2,"dd-mm-yyyy"),2)-1&" "&LEFT(TEXT(W2,"mmmm"),3)&" = "&H47&" "& "Tons" & CHAR(10) & CHAR(10) &"3- Total Monthly (Sewedy + Canyon) = " &H48& " Tons" -> Canyon dispatch figures: 1- Thursday -1 Jan = 352.6 Tons 2- 01 Jan To -1 Jan = 1975.6 Tons 3- Total Monthly (Sewedy + Canyon) = 179753.1 Tons
F47: Monthly canyon | H47: 1975.6
F48: (Sewedy + Canyon) | H48: 179753.1
J67: Tuesday
